[Event "*** SCC Grand Prix: Titled Tuesday Blitz"]
[Site "Chess.com"]
[Date "2020.06.09"]
[Round "6"]
[White "Treacherous_horse64"]
[Black "Munkhzul_Turmunkh"]
[Result "1-0"]
[WhiteElo "2456"]
[BlackElo "2588"]
[TimeControl "180+1"]
[EndTime "10:11:16 PDT"]
[Termination "Treacherous_horse64 won by checkmate"]

1. d4 {[%clk 0:03:00.9]} 1... Nf6 {[%clk 0:02:58.9]} 2. Nf3 {[%clk 0:02:57.6]}
2... e6 {[%clk 0:02:59]} 3. Nbd2 {[%clk 0:02:56.6]} 3... d5 {[%clk 0:02:58.1]}
4. e3 {[%clk 0:02:56.5]} 4... Bd6 {[%clk 0:02:56.7]} 5. c4 {[%clk 0:02:56.1]}
5... c6 {[%clk 0:02:55.9]} 6. b3 {[%clk 0:02:55.6]} 6... O-O {[%clk 0:02:54.5]}
7. Bb2 {[%clk 0:02:53.6]} 7... b6 {[%clk 0:02:51.2]} 8. Bd3 {[%clk 0:02:53.5]}
8... Bb7 {[%clk 0:02:49.7]} 9. Qe2 {[%clk 0:02:51.3]} 9... c5 {[%clk 0:02:48.1]}
10. O-O {[%clk 0:02:50.3]} 10... Nc6 {[%clk 0:02:45.4]} 11. dxc5 {[%clk
0:02:47.2]} 11... bxc5 {[%clk 0:02:44]} 12. e4 {[%clk 0:02:34.9]} 12... Nh5
{[%clk 0:02:32.8]} 13. exd5 {[%clk 0:02:22.8]} 13... Nf4 {[%clk 0:02:25]} 14.
Bxh7+ {[%clk 0:01:33.9]} 14... Kxh7 {[%clk 0:02:19.8]} 15. Qe4+ {[%clk
0:01:29.7]} 15... f5 {[%clk 0:02:15.4]} 16. Qe3 {[%clk 0:01:25.1]} 16... exd5
{[%clk 0:02:12.5]} 17. cxd5 {[%clk 0:01:23.5]} 17... Nxd5 {[%clk 0:02:10.2]} 18.
Ng5+ {[%clk 0:01:17]} 18... Kg6 {[%clk 0:01:52.8]} 19. Qe6+ {[%clk 0:01:15.7]}
19... Nf6 {[%clk 0:01:42.3]} 20. Ndf3 {[%clk 0:01:00]} 20... Bc8 {[%clk
0:01:09.5]} 21. Qc4 {[%clk 0:00:51.3]} 21... Nd4 {[%clk 0:01:05.7]} 22. Rad1
{[%clk 0:00:24]} 22... Qc7 {[%clk 0:01:03.7]} 23. Bxd4 {[%clk 0:00:19]} 23...
cxd4 {[%clk 0:01:03]} 24. Qxd4 {[%clk 0:00:19.4]} 24... Bf4 {[%clk 0:00:52.6]}
25. h4 {[%clk 0:00:17.7]} 25... Ne4 {[%clk 0:00:43.3]} 26. Nxe4 {[%clk
0:00:14.1]} 26... fxe4 {[%clk 0:00:44.2]} 27. Qxe4+ {[%clk 0:00:14.4]} 27... Bf5
{[%clk 0:00:43]} 28. Qd5 {[%clk 0:00:11.3]} 28... Rad8 {[%clk 0:00:34.4]} 29.
Qb5 {[%clk 0:00:08.3]} 29... Rxd1 {[%clk 0:00:28.6]} 30. Rxd1 {[%clk 0:00:09.2]}
30... Kh7 {[%clk 0:00:24.8]} 31. Ng5+ {[%clk 0:00:09.2]} 31... Bxg5 {[%clk
0:00:22]} 32. hxg5 {[%clk 0:00:10.1]} 32... Bg6 {[%clk 0:00:20.7]} 33. Qb4
{[%clk 0:00:08.8]} 33... Rd8 {[%clk 0:00:20]} 34. Qh4+ {[%clk 0:00:08.8]} 34...
Kg8 {[%clk 0:00:20]} 35. Re1 {[%clk 0:00:09.7]} 35... Re8 {[%clk 0:00:16.9]} 36.
Rd1 {[%clk 0:00:08.8]} 36... Qc2 {[%clk 0:00:15.9]} 37. Qg4 {[%clk 0:00:08.6]}
37... Qe4 {[%clk 0:00:15]} 38. Qg3 {[%clk 0:00:07.6]} 38... Rf8 {[%clk
0:00:12.5]} 39. Rd7 {[%clk 0:00:07.2]} 39... Qb1+ {[%clk 0:00:10.7]} 40. Kh2
{[%clk 0:00:07.6]} 40... Qf5 {[%clk 0:00:11.3]} 41. Qc7 {[%clk 0:00:07.3]} 41...
Qf4+ {[%clk 0:00:08.3]} 42. Qxf4 {[%clk 0:00:07]} 42... Rxf4 {[%clk 0:00:09.2]}
43. Rxa7 {[%clk 0:00:07.9]} 43... Rxf2 {[%clk 0:00:09.1]} 44. Ra5 {[%clk
0:00:07.6]} 44... Be4 {[%clk 0:00:07.4]} 45. Kg3 {[%clk 0:00:06.6]} 45... Rxg2+
{[%clk 0:00:07.5]} 46. Kf4 {[%clk 0:00:07.1]} 46... Bb1 {[%clk 0:00:07.7]} 47.
a3 {[%clk 0:00:06.9]} 47... Rb2 {[%clk 0:00:07.3]} 48. b4 {[%clk 0:00:07.3]}
48... Kf7 {[%clk 0:00:07.5]} 49. Ra6 {[%clk 0:00:06.7]} 49... Rb3 {[%clk
0:00:06.4]} 50. Ra7+ {[%clk 0:00:05.6]} 50... Kg6 {[%clk 0:00:05.7]} 51. Ra6+
{[%clk 0:00:06]} 51... Kh5 {[%clk 0:00:05.9]} 52. Ra7 {[%clk 0:00:05.4]} 52...
Kg6 {[%clk 0:00:03.9]} 53. Ra6+ {[%clk 0:00:05.6]} 53... Kh7 {[%clk 0:00:04.4]}
54. Ra7 {[%clk 0:00:05.6]} 54... Rb2 {[%clk 0:00:04.7]} 55. Ra6 {[%clk
0:00:05.5]} 55... Bd3 {[%clk 0:00:04.2]} 56. Ra5 {[%clk 0:00:05.8]} 56... Kg6
{[%clk 0:00:04.2]} 57. Kg4 {[%clk 0:00:05.2]} 57... Rg2+ {[%clk 0:00:03.1]} 58.
Kf4 {[%clk 0:00:05.7]} 58... Rb2 {[%clk 0:00:03]} 59. Ra7 {[%clk 0:00:05.3]}
59... Bb1 {[%clk 0:00:02.8]} 60. Ra5 {[%clk 0:00:05.4]} 60... Kh7 {[%clk
0:00:03]} 61. Rc5 {[%clk 0:00:05]} 61... Rb3 {[%clk 0:00:03.4]} 62. Kg4 {[%clk
0:00:04.9]} 62... Rxa3 {[%clk 0:00:03.4]} 63. b5 {[%clk 0:00:05.4]} 63... Rb3
{[%clk 0:00:03.6]} 64. Re5 {[%clk 0:00:05.6]} 64... Bd3 {[%clk 0:00:03.6]} 65.
Kh5 {[%clk 0:00:06.3]} 65... Bxb5 {[%clk 0:00:03.6]} 66. g6+ {[%clk 0:00:06.7]}
66... Kg8 {[%clk 0:00:04]} 67. Rc5 {[%clk 0:00:07.1]} 67... Kf8 {[%clk
0:00:04.3]} 68. Rf5+ {[%clk 0:00:06.8]} 68... Ke8 {[%clk 0:00:03.8]} 69. Rf7
{[%clk 0:00:07]} 69... Rh3+ {[%clk 0:00:02.6]} 70. Kg5 {[%clk 0:00:07]} 70...
Bd7 {[%clk 0:00:02.1]} 71. Rxg7 {[%clk 0:00:06.9]} 71... Rg3+ {[%clk 0:00:02.6]}
72. Kf6 {[%clk 0:00:06.3]} 72... Rf3+ {[%clk 0:00:02.6]} 73. Ke5 {[%clk
0:00:06.9]} 73... Rg3 {[%clk 0:00:02.7]} 74. Rg8+ {[%clk 0:00:05.7]} 74... Ke7
{[%clk 0:00:02.6]} 75. Rg7+ {[%clk 0:00:06.6]} 75... Ke8 {[%clk 0:00:02.6]} 76.
Kf4 {[%clk 0:00:06.2]} 76... Rg4+ {[%clk 0:00:02.1]} 77. Ke5 {[%clk 0:00:06.1]}
77... Rg1 {[%clk 0:00:03]} 78. Rg8+ {[%clk 0:00:06.9]} 78... Ke7 {[%clk
0:00:03.1]} 79. Rg7+ {[%clk 0:00:07.8]} 79... Kd8 {[%clk 0:00:03.5]} 80. Kf6
{[%clk 0:00:08.7]} 80... Rf1+ {[%clk 0:00:02.1]} 81. Kg5 {[%clk 0:00:08.7]}
81... Rg1+ {[%clk 0:00:02.6]} 82. Kh6 {[%clk 0:00:09.1]} 82... Rh1+ {[%clk
0:00:02.9]} 83. Kg5 {[%clk 0:00:09.5]} 83... Rg1+ {[%clk 0:00:03.8]} 84. Kf4
{[%clk 0:00:10]} 84... Be8 {[%clk 0:00:04.2]} 85. Ra7 {[%clk 0:00:08.7]} 85...
Bxg6 {[%clk 0:00:04.3]} 86. Ke5 {[%clk 0:00:09.6]} 86... Ke8 {[%clk 0:00:04]}
87. Ke6 {[%clk 0:00:09.8]} 87... Bf7+ {[%clk 0:00:03.4]} 88. Kf6 {[%clk
0:00:09.8]} 88... Rf1+ {[%clk 0:00:03.3]} 89. Ke5 {[%clk 0:00:09.8]} 89... Bh5
{[%clk 0:00:02.8]} 90. Kd6 {[%clk 0:00:10]} 90... Rd1+ {[%clk 0:00:02.8]} 91.
Ke6 {[%clk 0:00:10.6]} 91... Bg4+ {[%clk 0:00:03.2]} 92. Kf6 {[%clk 0:00:10.7]}
92... Bd7 {[%clk 0:00:03.9]} 93. Ra8+ {[%clk 0:00:10.4]} 93... Bc8 {[%clk
0:00:03.6]} 94. Ra5 {[%clk 0:00:11.3]} 94... Kd7 {[%clk 0:00:03.8]} 95. Ra7+
{[%clk 0:00:11.5]} 95... Kc6 {[%clk 0:00:02.8]} 96. Ra8 {[%clk 0:00:11.5]} 96...
Kb7 {[%clk 0:00:02.9]} 97. Ra3 {[%clk 0:00:11.4]} 97... Rf1+ {[%clk 0:00:03.4]}
98. Ke5 {[%clk 0:00:11.7]} 98... Bd7 {[%clk 0:00:03.8]} 99. Rb3+ {[%clk
0:00:11.7]} 99... Kc7 {[%clk 0:00:04.2]} 100. Rc3+ {[%clk 0:00:12.6]} 100... Bc6
{[%clk 0:00:04.8]} 101. Kd4 {[%clk 0:00:11]} 101... Re1 {[%clk 0:00:05.1]} 102.
Re3 {[%clk 0:00:11.1]} 102... Rd1+ {[%clk 0:00:04.4]} 103. Rd3 {[%clk
0:00:10.1]} 103... Rh1 {[%clk 0:00:05.1]} 104. Re3 {[%clk 0:00:10.3]} 104... Kd6
{[%clk 0:00:05.3]} 105. Rd3 {[%clk 0:00:10.2]} 105... Rh4+ {[%clk 0:00:05.8]}
106. Kc3+ {[%clk 0:00:10.4]} 106... Kc5 {[%clk 0:00:05.6]} 107. Rg3 {[%clk
0:00:10.4]} 107... Bd5 {[%clk 0:00:06.1]} 108. Kd3 {[%clk 0:00:10.7]} 108... Ra4
{[%clk 0:00:06.5]} 109. Re3 {[%clk 0:00:09.4]} 109... Ra3+ {[%clk 0:00:06.9]}
110. Ke2 {[%clk 0:00:09.8]} 110... Ra2+ {[%clk 0:00:07]} 111. Kd3 {[%clk
0:00:08]} 111... Bc4+ {[%clk 0:00:07.4]} 112. Ke4 {[%clk 0:00:07.9]} 112... Ra3
{[%clk 0:00:08]} 113. Rxa3 {[%clk 0:00:07.6]} 113... Kb4 {[%clk 0:00:08.4]} 114.
Ra1 {[%clk 0:00:08.5]} 114... Bb3 {[%clk 0:00:08.2]} 115. Re1 {[%clk 0:00:09.4]}
115... Bc4 {[%clk 0:00:08.1]} 116. Kd4 {[%clk 0:00:09.8]} 116... Bb3 {[%clk
0:00:08.2]} 117. Rb1 {[%clk 0:00:10.2]} 117... Ka3 {[%clk 0:00:08.5]} 118. Kc3
{[%clk 0:00:10.7]} 118... Be6 {[%clk 0:00:05.7]} 119. Rb6 {[%clk 0:00:10.2]}
119... Bd5 {[%clk 0:00:02.2]} 120. Ra6# {[%clk 0:00:09.5]} 1-0

[Event "*** SCC Grand Prix: Titled Tuesday Blitz"]
[Site "Chess.com"]
[Date "2020.06.09"]
[Round "7"]
[White "Skatchkov_V"]
[Black "theblitzchamp"]
[Result "0-1"]
[WhiteElo "2545"]
[BlackElo "2698"]
[TimeControl "180+1"]
[EndTime "10:12:52 PDT"]
[Termination "theblitzchamp won by resignation"]

1. d4 {[%clk 0:03:00.7]} 1... Nf6 {[%clk 0:02:58.9]} 2. c4 {[%clk 0:03:01.2]}
2... g6 {[%clk 0:02:58.7]} 3. Nf3 {[%clk 0:03:01.7]} 3... Bg7 {[%clk 0:02:59.3]}
4. g3 {[%clk 0:03:02.5]} 4... O-O {[%clk 0:02:59.9]} 5. Bg2 {[%clk 0:03:03.3]}
5... d6 {[%clk 0:03:00.8]} 6. O-O {[%clk 0:03:03.7]} 6... Nbd7 {[%clk
0:03:01.7]} 7. Nc3 {[%clk 0:03:04.2]} 7... e5 {[%clk 0:03:02.3]} 8. e4 {[%clk
0:03:04.5]} 8... exd4 {[%clk 0:03:02.9]} 9. Nxd4 {[%clk 0:03:04.6]} 9... Re8
{[%clk 0:03:03.8]} 10. Re1 {[%clk 0:03:04.9]} 10... a5 {[%clk 0:03:04.4]} 11. h3
{[%clk 0:03:05.2]} 11... Nc5 {[%clk 0:03:04.9]} 12. Qc2 {[%clk 0:03:04.6]} 12...
Bd7 {[%clk 0:03:05.3]} 13. Be3 {[%clk 0:03:04.7]} 13... Qc8 {[%clk 0:03:05.6]}
14. Kh2 {[%clk 0:03:05.3]} 14... Re5 {[%clk 0:03:05.9]} 15. f3 {[%clk
0:02:54.7]} 15... Rh5 {[%clk 0:03:05]} 16. g4 {[%clk 0:02:54.9]} 16... Bxg4
{[%clk 0:03:04.8]} 17. fxg4 {[%clk 0:02:43]} 17... Nxg4+ {[%clk 0:03:05.7]} 18.
Kg1 {[%clk 0:02:37.1]} 18... Nxe3 {[%clk 0:03:05.8]} 0-1

[Event "*** SCC Grand Prix: Titled Tuesday Blitz"]
[Site "Chess.com"]
[Date "2020.06.09"]
[Round "7"]
[White "PavelChernomordik"]
[Black "marianokar"]
[Result "1-0"]
[WhiteElo "2283"]
[BlackElo "2377"]
[TimeControl "180+1"]
[EndTime "10:13:59 PDT"]
[Termination "PavelChernomordik won by resignation"]

1. e4 {[%clk 0:03:00.9]} 1... c5 {[%clk 0:02:59.4]} 2. Nc3 {[%clk 0:02:59.8]}
2... e6 {[%clk 0:02:58.2]} 3. f4 {[%clk 0:02:59]} 3... a6 {[%clk 0:02:58.1]} 4.
Nf3 {[%clk 0:02:58.4]} 4... b5 {[%clk 0:02:58.7]} 5. Qe2 {[%clk 0:02:56.6]} 5...
Bb7 {[%clk 0:02:55.2]} 6. d3 {[%clk 0:02:56.1]} 6... Nf6 {[%clk 0:02:52.5]} 7.
g3 {[%clk 0:02:54.6]} 7... d5 {[%clk 0:02:52.7]} 8. e5 {[%clk 0:02:53.2]} 8...
Nfd7 {[%clk 0:02:52.6]} 9. Bg2 {[%clk 0:02:52.3]} 9... g6 {[%clk 0:02:51.7]} 10.
O-O {[%clk 0:02:51.5]} 10... h5 {[%clk 0:02:52.2]} 11. Ng5 {[%clk 0:02:49.4]}
11... Be7 {[%clk 0:02:52]} 12. h4 {[%clk 0:02:45]} 12... Nc6 {[%clk 0:02:49.3]}
13. Qf2 {[%clk 0:02:39.4]} 13... Nd4 {[%clk 0:02:47.6]} 14. Nd1 {[%clk 0:02:38]}
14... Nf5 {[%clk 0:02:47.4]} 15. Ne3 {[%clk 0:02:36.5]} 15... Nxe3 {[%clk
0:02:43.1]} 16. Bxe3 {[%clk 0:02:34.5]} 16... Qc7 {[%clk 0:02:43]} 17. c4 {[%clk
0:02:25.4]} 17... bxc4 {[%clk 0:02:41.2]} 18. dxc4 {[%clk 0:02:24.3]} 18... d4
{[%clk 0:02:40.5]} 19. Bd2 {[%clk 0:02:21.2]} 19... Bxg2 {[%clk 0:02:32.7]} 20.
Qxg2 {[%clk 0:02:20.2]} 20... Bxg5 {[%clk 0:02:32.5]} 21. Qxa8+ {[%clk
0:02:16.8]} 21... Ke7 {[%clk 0:02:30.5]} 22. Qxh8 {[%clk 0:02:14.7]} 1-0

[Event "*** SCC Grand Prix: Titled Tuesday Blitz"]
[Site "Chess.com"]
[Date "2020.06.09"]
[Round "7"]
[White "SantoBlue"]
[Black "DortmundCity"]
[Result "1-0"]
[WhiteElo "2789"]
[BlackElo "2599"]
[TimeControl "180+1"]
[EndTime "10:14:21 PDT"]
[Termination "SantoBlue won by resignation"]

1. e4 {[%clk 0:03:00.9]} 1... c5 {[%clk 0:02:40.1]} 2. Nf3 {[%clk 0:03:00.7]}
2... Nc6 {[%clk 0:02:32.4]} 3. d4 {[%clk 0:02:59.1]} 3... cxd4 {[%clk
0:02:32.3]} 4. Nxd4 {[%clk 0:03:00]} 4... Nf6 {[%clk 0:02:33.1]} 5. Nc3 {[%clk
0:02:58.4]} 5... d6 {[%clk 0:02:33.5]} 6. Bg5 {[%clk 0:02:58.4]} 6... e6 {[%clk
0:02:32.3]} 7. Bb5 {[%clk 0:02:58.2]} 7... Bd7 {[%clk 0:02:32.1]} 8. Qd3 {[%clk
0:02:58]} 8... a6 {[%clk 0:02:31]} 9. Bxc6 {[%clk 0:02:57.3]} 9... bxc6 {[%clk
0:02:31.3]} 10. O-O-O {[%clk 0:02:46.8]} 10... c5 {[%clk 0:02:28.7]} 11. Nf3
{[%clk 0:02:46.2]} 11... h6 {[%clk 0:02:16.6]} 12. Bh4 {[%clk 0:02:34.6]} 12...
Qa5 {[%clk 0:01:44.4]} 13. e5 {[%clk 0:02:33]} 13... Nd5 {[%clk 0:01:40.6]} 14.
Nxd5 {[%clk 0:02:31.7]} 14... exd5 {[%clk 0:01:40.7]} 15. Qxd5 {[%clk
0:02:32.6]} 15... Rb8 {[%clk 0:01:38.3]} 16. exd6 {[%clk 0:02:32.6]} 1-0

[Event "*** SCC Grand Prix: Titled Tuesday Blitz"]
[Site "Chess.com"]
[Date "2020.06.09"]
[Round "7"]
[White "Boudicca64"]
[Black "AniJak"]
[Result "0-1"]
[WhiteElo "1827"]
[BlackElo "2242"]
[TimeControl "180+1"]
[EndTime "10:14:21 PDT"]
[Termination "AniJak won by resignation"]

1. e4 {[%clk 0:03:00.9]} 1... c6 {[%clk 0:03:00.4]} 2. d4 {[%clk 0:02:58.8]}
2... d5 {[%clk 0:03:00.5]} 3. e5 {[%clk 0:02:58.2]} 3... Bf5 {[%clk 0:02:58.8]}
4. Nf3 {[%clk 0:02:57.5]} 4... e6 {[%clk 0:02:57.4]} 5. Be2 {[%clk 0:02:55]}
5... c5 {[%clk 0:02:54.6]} 6. dxc5 {[%clk 0:02:54]} 6... Bxc5 {[%clk 0:02:53]}
7. a3 {[%clk 0:02:54.2]} 7... Ne7 {[%clk 0:02:50.7]} 8. b4 {[%clk 0:02:51.9]}
8... Bb6 {[%clk 0:02:50.5]} 9. O-O {[%clk 0:02:50.8]} 9... Nd7 {[%clk
0:02:49.6]} 10. Nbd2 {[%clk 0:02:48.9]} 10... Nc6 {[%clk 0:02:45.8]} 11. Bb2
{[%clk 0:02:47]} 11... Bc7 {[%clk 0:02:45.7]} 12. Bb5 {[%clk 0:02:42.6]} 12...
O-O {[%clk 0:02:40.7]} 13. Bxc6 {[%clk 0:02:40.4]} 13... bxc6 {[%clk 0:02:41.6]}
14. Re1 {[%clk 0:02:39.5]} 14... Bg4 {[%clk 0:02:40.7]} 15. c4 {[%clk
0:02:36.5]} 15... Qb8 {[%clk 0:02:30.2]} 16. h3 {[%clk 0:02:32]} 16... Bh5
{[%clk 0:02:28.7]} 17. g4 {[%clk 0:02:30.4]} 17... Bg6 {[%clk 0:02:28.7]} 18.
cxd5 {[%clk 0:02:16.1]} 18... cxd5 {[%clk 0:02:27.6]} 19. Nc4 {[%clk 0:02:12.1]}
19... Rd8 {[%clk 0:02:13.4]} 20. Na5 {[%clk 0:02:05.5]} 20... Bxa5 {[%clk
0:02:11.1]} 21. bxa5 {[%clk 0:02:02.4]} 21... Qxb2 {[%clk 0:02:10.6]} 0-1

[Event "*** SCC Grand Prix: Titled Tuesday Blitz"]
[Site "Chess.com"]
[Date "2020.06.09"]
[Round "7"]
[White "evgchess5"]
[Black "Jungle_Jaguar"]
[Result "1-0"]
[WhiteElo "2804"]
[BlackElo "2609"]
[TimeControl "180+1"]
[EndTime "10:14:27 PDT"]
[Termination "evgchess5 won by resignation"]

1. e4 {[%clk 0:02:17.2]} 1... e5 {[%clk 0:02:59.5]} 2. Nf3 {[%clk 0:02:16.9]}
2... Nc6 {[%clk 0:02:59.6]} 3. Bc4 {[%clk 0:02:17.5]} 3... Bc5 {[%clk
0:02:58.2]} 4. O-O {[%clk 0:02:17]} 4... Nf6 {[%clk 0:02:56.7]} 5. d3 {[%clk
0:02:17.4]} 5... d6 {[%clk 0:02:56.1]} 6. c3 {[%clk 0:02:17.6]} 6... a6 {[%clk
0:02:56.3]} 7. Bb3 {[%clk 0:02:17.6]} 7... Ba7 {[%clk 0:02:56.1]} 8. Be3 {[%clk
0:02:17.7]} 8... h6 {[%clk 0:02:52.9]} 9. Nbd2 {[%clk 0:02:17.6]} 9... g5 {[%clk
0:02:52.7]} 10. Bxa7 {[%clk 0:02:12.7]} 10... Rxa7 {[%clk 0:02:52.4]} 11. Nc4
{[%clk 0:02:13.1]} 11... g4 {[%clk 0:02:52]} 12. Nfd2 {[%clk 0:02:12.5]} 12...
Nh5 {[%clk 0:02:52.5]} 13. g3 {[%clk 0:02:05.6]} 13... Nf6 {[%clk 0:02:52.5]}
14. f4 {[%clk 0:02:04.8]} 14... gxf3 {[%clk 0:02:45.2]} 15. Qxf3 {[%clk
0:02:04.2]} 15... Bh3 {[%clk 0:02:07.4]} 16. Qxf6 {[%clk 0:02:02.1]} 16... Qxf6
{[%clk 0:02:03.8]} 17. Rxf6 {[%clk 0:02:03]} 17... Ke7 {[%clk 0:02:03.8]} 18.
Rf2 {[%clk 0:02:01]} 18... Be6 {[%clk 0:02:03.4]} 19. Ne3 {[%clk 0:01:59.9]} 1-0

[Event "*** SCC Grand Prix: Titled Tuesday Blitz"]
[Site "Chess.com"]
[Date "2020.06.09"]
[Round "7"]
[White "Tsyhanchuk_Stanislav"]
[Black "WeAintSurePal"]
[Result "1-0"]
[WhiteElo "2403"]
[BlackElo "2279"]
[TimeControl "180+1"]
[EndTime "10:14:32 PDT"]
[Termination "Tsyhanchuk_Stanislav won by resignation"]

1. e4 {[%clk 0:02:28.6]} 1... c5 {[%clk 0:02:59.3]} 2. Nf3 {[%clk 0:02:28.3]}
2... e6 {[%clk 0:02:59.6]} 3. d4 {[%clk 0:02:29.2]} 3... cxd4 {[%clk 0:03:00.4]}
4. Nxd4 {[%clk 0:02:30]} 4... a6 {[%clk 0:03:00.8]} 5. Bd3 {[%clk 0:02:29.1]}
5... Qc7 {[%clk 0:03:01]} 6. O-O {[%clk 0:02:25.7]} 6... Nf6 {[%clk 0:03:00.8]}
7. Qe2 {[%clk 0:02:23.3]} 7... d6 {[%clk 0:03:00.1]} 8. f4 {[%clk 0:02:22.7]}
8... Be7 {[%clk 0:02:55.3]} 9. Kh1 {[%clk 0:02:20.7]} 9... Nbd7 {[%clk
0:02:53.7]} 10. Nc3 {[%clk 0:02:19.4]} 10... O-O {[%clk 0:02:53]} 11. Bd2 {[%clk
0:02:17.3]} 11... b5 {[%clk 0:02:52.4]} 12. Rae1 {[%clk 0:02:14.3]} 12... Bb7
{[%clk 0:02:52.2]} 13. e5 {[%clk 0:02:13.1]} 13... Nd5 {[%clk 0:02:40.6]} 14.
Qh5 {[%clk 0:02:08.8]} 14... g6 {[%clk 0:02:39.5]} 15. Qh3 {[%clk 0:02:08.2]}
15... dxe5 {[%clk 0:02:36.6]} 16. Nxe6 {[%clk 0:02:06.4]} 16... fxe6 {[%clk
0:02:33.2]} 17. Qxe6+ {[%clk 0:02:07]} 17... Rf7 {[%clk 0:02:32.4]} 18. Nxd5
{[%clk 0:02:04.5]} 18... Bxd5 {[%clk 0:02:32.5]} 19. Qxd5 {[%clk 0:02:05.4]}
19... Nb6 {[%clk 0:02:32.6]} 20. Qe6 {[%clk 0:02:00.9]} 20... Rf8 {[%clk
0:02:25.1]} 21. Ba5 {[%clk 0:01:53.8]} 1-0

[Event "*** SCC Grand Prix: Titled Tuesday Blitz"]
[Site "Chess.com"]
[Date "2020.06.09"]
[Round "7"]
[White "Iball95"]
[Black "Nbk90"]
[Result "0-1"]
[WhiteElo "2667"]
[BlackElo "2555"]
[TimeControl "180+1"]
[EndTime "10:15:01 PDT"]
[Termination "Nbk90 won by resignation"]

1. d4 {[%clk 0:03:00.9]} 1... Nf6 {[%clk 0:02:59.5]} 2. Nc3 {[%clk 0:03:01.3]}
2... e6 {[%clk 0:02:59.9]} 3. e4 {[%clk 0:03:00.8]} 3... d5 {[%clk 0:03:00.1]}
4. Bg5 {[%clk 0:03:01]} 4... dxe4 {[%clk 0:02:58.5]} 5. Nxe4 {[%clk 0:03:01.9]}
5... Be7 {[%clk 0:02:58.9]} 6. Bxf6 {[%clk 0:03:02.2]} 6... gxf6 {[%clk
0:02:59.1]} 7. Qd3 {[%clk 0:03:02.5]} 7... f5 {[%clk 0:02:55.5]} 8. Nc3 {[%clk
0:03:02.6]} 8... a6 {[%clk 0:02:50.3]} 9. O-O-O {[%clk 0:03:00.5]} 9... b5
{[%clk 0:02:49.1]} 10. Nf3 {[%clk 0:02:56.7]} 10... b4 {[%clk 0:02:37.5]} 11.
Na4 {[%clk 0:02:54.6]} 11... Bb7 {[%clk 0:02:36.2]} 12. Ne5 {[%clk 0:02:53.7]}
12... Nd7 {[%clk 0:02:26.1]} 13. Qg3 {[%clk 0:02:51.4]} 13... Kf8 {[%clk
0:01:55.3]} 14. Nc5 {[%clk 0:02:45.4]} 14... Nxe5 {[%clk 0:01:52.1]} 15. dxe5
{[%clk 0:02:46.2]} 15... Qxd1+ {[%clk 0:01:43.6]} 16. Kxd1 {[%clk 0:02:47]}
16... Bxc5 {[%clk 0:01:44.5]} 17. Kc1 {[%clk 0:02:30]} 17... Rg8 {[%clk
0:01:39.8]} 18. Qh4 {[%clk 0:02:29]} 18... Rg4 {[%clk 0:01:26.1]} 19. Qxh7
{[%clk 0:02:25.2]} 19... Bxf2 {[%clk 0:01:25.3]} 20. Qh4 {[%clk 0:02:13.7]}
20... Rxh4 {[%clk 0:01:23.9]} 0-1

[Event "*** SCC Grand Prix: Titled Tuesday Blitz"]
[Site "Chess.com"]
[Date "2020.06.09"]
[Round "7"]
[White "harkerchess"]
[Black "killer311"]
[Result "0-1"]
[WhiteElo "2034"]
[BlackElo "2398"]
[TimeControl "180+1"]
[EndTime "10:15:16 PDT"]
[Termination "killer311 won by resignation"]

1. d4 {[%clk 0:03:00.9]} 1... d5 {[%clk 0:02:59.7]} 2. c4 {[%clk 0:03:00.9]}
2... c6 {[%clk 0:03:00]} 3. cxd5 {[%clk 0:03:01]} 3... cxd5 {[%clk 0:02:59.3]}
4. Nc3 {[%clk 0:03:01.6]} 4... Nf6 {[%clk 0:02:59.3]} 5. Nf3 {[%clk 0:03:02]}
5... Nc6 {[%clk 0:02:58.1]} 6. Bf4 {[%clk 0:03:02.3]} 6... a6 {[%clk 0:02:57.5]}
7. e3 {[%clk 0:03:02.6]} 7... Bg4 {[%clk 0:02:56.5]} 8. Bd3 {[%clk 0:03:03.1]}
8... e6 {[%clk 0:02:56.6]} 9. h3 {[%clk 0:03:03]} 9... Bh5 {[%clk 0:02:56]} 10.
g4 {[%clk 0:03:02.8]} 10... Bg6 {[%clk 0:02:55.5]} 11. Ne5 {[%clk 0:03:02]}
11... Bd6 {[%clk 0:02:52.7]} 12. Nxg6 {[%clk 0:03:01.1]} 12... hxg6 {[%clk
0:02:52.1]} 13. Bxd6 {[%clk 0:03:01.2]} 13... Qxd6 {[%clk 0:02:52.5]} 14. f4
{[%clk 0:02:55.3]} 14... Rc8 {[%clk 0:02:49.7]} 15. Qb3 {[%clk 0:02:54]} 15...
b5 {[%clk 0:02:46.3]} 16. Rc1 {[%clk 0:02:51.8]} 16... g5 {[%clk 0:02:42.1]} 17.
Ne2 {[%clk 0:02:47.2]} 17... gxf4 {[%clk 0:02:39.2]} 18. exf4 {[%clk 0:02:48.1]}
18... Nxg4 {[%clk 0:02:36.8]} 19. Rg1 {[%clk 0:02:36.7]} 19... Nf6 {[%clk
0:02:36.5]} 20. Rxg7 {[%clk 0:02:36.6]} 20... Rxh3 {[%clk 0:02:36.5]} 21. Kd2
{[%clk 0:02:33.2]} 21... Ne4+ {[%clk 0:02:26.4]} 22. Ke1 {[%clk 0:02:27.4]}
22... Rh1+ {[%clk 0:02:20.3]} 23. Ng1 {[%clk 0:02:23.5]} 23... Qxf4 {[%clk
0:02:15.9]} 24. Qc2 {[%clk 0:02:17.1]} 24... Qe3+ {[%clk 0:02:09.2]} 25. Kf1
{[%clk 0:02:15.5]} 25... Kf8 {[%clk 0:01:43.2]} 26. Bxe4 {[%clk 0:02:06.4]}
26... dxe4 {[%clk 0:01:39.9]} 27. Rg4 {[%clk 0:01:59.4]} 27... Qf3+ {[%clk
0:01:39.5]} 28. Ke1 {[%clk 0:01:57.9]} 28... Qxg4 {[%clk 0:01:39.1]} 29. Qc5+
{[%clk 0:01:57.4]} 29... Kg7 {[%clk 0:01:37.9]} 30. Qg5+ {[%clk 0:01:56.7]}
30... Qxg5 {[%clk 0:01:37.7]} 0-1